Cogmind - Beta 14 @@@ ROGUE MODE // 2024.09.06 @ 21:57:11 Player: MOPO3 Result: Destroyed by C-40 Crusher with Compactor Performance ------------- Evolutions (3) 1500 Regions Visited (5) 1000 Robots Destroyed (188) 940 Value Destroyed (5652) 5652 Prototype IDs (4) 80 Alien Tech Used (0) 0 Bonus (1493) 1493 TOTAL SCORE: 10665 Bonus ------- High Alert Combat Kills 1493 Cogmind --------- Core Integrity 0/700 Matter 44/300 Energy 100/100 System Corruption 50% Temperature Cool (0) Movement Core (50) Location -7/Waste Parts ------- > --- POWER (1) -------- (None) > --- PROPULSION (4) --- (None) > --- UTILITY (6) ------ (None) > --- WEAPON (2) ------- (None) > --- INVENTORY (5) ---- VTOL Module Improved Cesium-ion Thruster Cooled VTOL Module ECM Suite Precision Grenade Launcher Peak State ------------ > --- POWER ------------ Light Deuterium Engine > --- PROPULSION ------- Light Treads Armored Treads Armored Treads Armored Treads > --- UTILITY ---------- Improved Heat Sink Huge Storage Unit Improved Sensor Array Hardened Medium Armor Plating Hacking Suite Hacking Suite > --- WEAPON ----------- Gauss Cannon Gauss Cannon > --- INVENTORY -------- Heavy Ion Engine Light Nuclear Core Light Treads Armored Treads Advanced Treads VTOL Module VTOL Module Cooled VTOL Module Medium Storage Unit Improved Signal Interpreter ECM Suite Light Armor Plating Light Armor Plating Light Armor Plating Medium Armor Plating Improved Shield Generator Heavy Particle Cannon Ion Cannon Ion Cannon Ion Cannon Advanced Assault Cannon Gauss Cannon Grenade Launcher Grenade Launcher Great Maul [Rating: 43] Favorites ----------- Power Ion Engine Engine Ion Engine Power Core Light Nuclear Core Propulsion Light Treads Treads Light Treads Leg Aluminum Leg Flight Unit VTOL Module Utility Huge Storage Unit Device Improved Heat Sink Storage Huge Storage Unit Processor Target Analyzer Hackware Hacking Suite Protection Light Armor Plating Weapon Light Cannon Energy Cannon Beam Cannon Ballistic Gun Assault Rifle Ballistic Cannon Light Cannon Launcher Grenade Launcher Impact Weapon Great Maul Slashing Weapon Mining Claw Build | -11 -10 -9 -8 -7 -7 ------- Run | Yrd Mat Mat Mat Fac Was Slots Evolved 6 | . . 2 2 2 . Power . | . . . . . . Propulsion 2 | . . 2 . . . Utility 4 | . . . 2 2 . Weapon . | . . . . . . Parts Attached 133 | 6 14 19 39 50 5 Power 9 | 1 1 1 3 3 . Engine 6 | 1 1 1 2 1 . Core 3 | . . . 1 2 . Reactor . | . . . . . . Propulsion 44 | 2 3 9 12 15 3 Treads 28 | 2 3 8 8 7 . Leg 4 | . . 1 3 . . Wheel . | . . . . . . Hover . | . . . . . . Flight 12 | . . . 1 8 3 Utility 32 | 1 4 3 7 16 1 Device 10 | . 1 . 2 6 1 Storage 4 | 1 2 . . 1 . Processor 2 | . . . . 2 . Hackware 2 | . . . 1 1 . Protection 14 | . 1 3 4 6 . Artifact . | . . . . . . Weapon 48 | 2 6 6 17 16 1 Energy Gun . | . . . . . . Energy Cannon 8 | . 2 . 6 . . Ballistic Gun 2 | 2 . . . . . Ballistic Cannon 18 | . 3 3 5 7 . Launcher 14 | . 1 2 5 6 . Special Weapon . | . . . . . . Impact Weapon 5 | . . . 1 3 1 Slashing Weapon 1 | . . 1 . . . Piercing Weapon . | . . . . . . Special Melee Weapon . | . . . . . . Unidentified Prototypes 3 | . . . . 3 . Parts Lost 47 | . 1 5 16 18 7 Power 5 | . . . 2 2 1 Propulsion 17 | . . 3 6 5 3 Utility 16 | . 1 1 3 9 2 Weapon 9 | . . 1 5 2 1 Highest Loss Streak 6 | . 1 2 4 6 6 To Critical Strikes 1 | . . . 1 . . Average Slot Usage (%) 95 | . 98 97 97 93 65 Engine 8 | . 14 11 8 6 . Treads 29 | . 28 40 27 27 . Leg 1 | . . 1 4 . . Flight 1 | . . . 1 1 22 Device 6 | . 6 . 5 10 6 Storage 10 | . 18 11 9 7 7 Processor 1 | . . . . 4 7 Hackware 6 | . . . 9 9 7 Protection 7 | . 2 10 12 6 . Energy Cannon 5 | . 13 5 7 2 . Ballistic Cannon 11 | . 13 16 9 11 . Peak Build Rating 43 | 6 12 18 32 43 32 Average Rating 25 | 5 9 16 25 37 25 On Entrance 15 | . 6 12 16 32 29 Naked Turns 6 | . . . . . 6 Heaviest Build 112 | 14 92 100 105 112 20 Greatest Support 94 | 40 43 92 83 94 18 Greatest Overweight (x) 8 | 1 2 1 7 8 4 Average Overweight (x) . | . . . 1 . . Largest Inventory Capacity 25 | 8 25 25 25 25 10 Average Capacity 22 | 7 14 25 25 24 9 Most Carried 25 | 4 15 25 25 25 10 Average Carried 21 | 1 12 21 23 23 8 Final Capacity 25 | 8 25 25 25 10 5 Final Carried 24 | 4 15 24 23 10 5 Class Distribution -------------------- 55% | Mutant 30% | Scavenger-Mutant 13% | Hacker-Mutant Dominant Class ---------------- Mutant | -10/Materials Mutant | -9/Materials Scavenger-Mutant | -8/Materials Hacker-Mutant | -7/Factory Scavenger-Mutant | -7/Waste Resources | -11 -10 -9 -8 -7 -7 ----------- Run | Yrd Mat Mat Mat Fac Was Matter Collected 4104 | 260 402 783 995 1664 . Remotely . | . . . . . . Salvage Created 5030 | . 884 961 1499 1686 . Parts 309 | . 60 67 88 94 . Haulers Intercepted 9 | . 2 2 2 3 . Recyclers Shooed 3 | . 1 . . 2 . Parts Field Recycled . | . . . . . . Retrieved Matter . | . . . . . . Parts Self-Destructed . | . . . . . . Prevented . | . . . . . . Kills | -11 -10 -9 -8 -7 -7 ------- Run | Yrd Mat Mat Mat Fac Was Combat Hostiles Destroyed 134 | . 20 33 35 46 . Cannons 95 | . 16 24 25 30 . AOE 37 | . 3 9 9 16 . Classes Destroyed 16 | . 9 4 . 3 . Worker 13 | . 1 2 4 6 . Builder 7 | . 1 . 2 4 . Tunneler 5 | . 2 1 . 2 . Hauler 9 | . 2 2 2 3 . Recycler 5 | . 1 . 2 2 . Mechanic 1 | . . . . 1 . Operator 4 | . 1 1 1 1 . Watcher 10 | . 3 4 2 1 . Swarmer 37 | . 6 9 10 12 . Grunt 60 | . 14 14 17 15 . Brawler 2 | . . 1 . 1 . Duelist 5 | . . 1 1 3 . Protector 1 | . . 1 . . . Sentry 19 | . . 7 7 5 . Hunter 2 | . . . . 2 . Programmer 8 | . . . . 8 . Best Kill Streak 8 | . 7 8 8 8 . Combat Bots Only 7 | . 5 7 4 4 . Max Kills in Single Turn 6 | . 4 2 3 6 . Gunslinging . | . . . . . . Exploded 4 | . 3 2 2 4 . Melee . | . . . . . . Uniques/NPCs Destroyed . | . . . . . . Combat | -11 -10 -9 -8 -7 -7 -------- Run | Yrd Mat Mat Mat Fac Was Hostile Shots Fired 892 | . 69 159 218 440 6 Missed 285 | . 14 49 63 159 . Damage Taken 8692 | . 513 1551 2228 3863 537 Core 1118 | . 22 166 206 424 300 Absorbed by Shields . | . . . . . . Regen/Repaired (Parts) 36 | . . . . 36 . Core Remaining (%) 77 | 100 91 58 62 . . Volleys Fired 414 | . 53 97 134 130 . Largest 2 | . 2 2 2 2 . Hottest 120 | . 95 95 120 108 . Shots Fired 810 | . 106 187 260 257 . Gun . | . . . . . . Cannon 776 | . 105 177 248 246 . Launcher 34 | . 1 10 12 11 . Special . | . . . . . . Kinetic 531 | . 51 128 139 213 . Thermal 204 | . 54 49 68 33 . Explosive 34 | . 1 10 12 11 . Electromagnetic 41 | . . . 41 . . Robot Hit Streak 17 | . 9 14 17 13 . Robot Miss Streak 7 | . 3 4 5 7 . Penetration Max 1 | . . . . 1 . Secondary Targets . | . . . . . . Shots Hit Robots 494 | . 58 125 155 156 . Core Hits 260 | . 31 58 78 93 . Critical Kills 1 | . 1 . . . . Critical Parts Destroyed . | . . . . . . Critical Strikes 30 | . 2 6 5 17 . Meltdown 1 | . 1 . . . . Blast 28 | . 1 6 4 17 . Corrupt 1 | . . . 1 . . Melee Attacks 40 | . . 2 2 2 34 Impact 38 | . . . 2 2 34 Slashing 2 | . . 2 . . . Piercing . | . . . . . . Sneak Attacks . | . . . . . . Combat Hostiles . | . . . . . . Follow-up Attacks . | . . . . . . Damage Inflicted 14904 | . 1227 3046 4113 6518 . Guns . | . . . . . . Cannons 10653 | . 1093 2128 3233 4199 . Explosions 4246 | . 134 918 878 2316 . Melee . | . . . . . . Ramming 5 | . . . 2 3 . Kinetic 7452 | . 463 1600 1725 3664 . Thermal 3119 | . 630 528 886 1075 . Explosive 3706 | . 134 918 878 1776 . Electromagnetic 622 | . . . 622 . . Impact . | . . . . . . Slashing . | . . . . . . Piercing . | . . . . . . Highest Corruption 50 | . 3 2 . 20 50 Average Corruption 10 | . 2 2 . 11 36 Corruption Purged . | . . . . . . Corruption Blocked . | . . . . . . Effects 128 | . 19 . . 100 9 Message Errors 25 | . 5 . . 19 1 Matter Fused 29 | . 1 . . 27 1 Heat Flow Errors 12 | . 1 . . 10 1 Energy Discharges 17 | . 5 . . 9 3 Parts Rejected 2 | . . . . 1 1 Data Loss (minor) 19 | . 2 . . 16 1 Data Loss (major) 8 | . 1 . . 7 . Misfires 8 | . 4 . . 4 . Alerts 1 | . . . . 1 . Misdirections 2 | . . . . 1 1 Weapon Failures 5 | . . . . 5 . Overload Shots . | . . . . . . Overflow Damage 534 | . 17 83 91 343 . Projectiles 110 | . 17 33 30 30 . Explosions 424 | . . 50 61 313 . Melee . | . . . . . . Knockbacks 74 | . 6 17 23 28 . Impact . | . . . . . . Kinetic 65 | . 6 15 18 26 . Secondary 9 | . . 2 5 2 . Self-Inflicted Damage 509 | . . 69 72 368 . Shots 15 | . . 2 3 10 . Rammed 1 | . . . 1 . . Targets Rammed 2 | . . . 1 1 . Kicked . | . . . . . . Crushed 1 | . . . . 1 . Highest Temperature 462 | . 462 424 372 251 64 Average Temperature 90 | . 131 109 53 69 47 Received Heat Transfer 2688 | . 168 513 1080 927 . Effects 8 | . 3 4 1 . . Shutdowns 2 | . 1 1 . . . Energy Bleed 1 | . . 1 . . . Interference 1 | . . 1 . . . Matter Decay 2 | . 1 . 1 . . Short Circuit 1 | . . 1 . . . Damage (minor) 1 | . 1 . . . . Siege Activations . | . . . . . . Robots Corrupted 1 | . . . 1 . . Combat Hostiles 1 | . . . 1 . . Parts Fried . | . . . . . . Impact Corruptions 1 | . . . 1 . . Robots Melted 1 | . 1 . . . . Combat Hostiles 1 | . 1 . . . . Parts Melted 11 | . 3 4 3 1 . Heat Transferred 5160 | . 1332 1110 1517 1201 . Parts Sabotaged . | . . . . . . Parts Stolen . | . . . . . . Parts Stripped . | . . . . . . Power Chain Reactions . | . . . . . . Alert | -11 -10 -9 -8 -7 -7 ------- Run | Yrd Mat Mat Mat Fac Was Peak Influence 1500 | . 453 893 1028 1500 546 Initial 521 | . . 163 366 445 521 Average 572 | . 171 665 619 675 529 Maximum Alert Level 4 | . 2 3 3 4 2 Low Security (%) 12 | 100 62 10 . . . Level 1 16 | . 34 2 32 7 . Level 2 34 | . 2 29 21 57 100 Level 3 31 | . . 58 46 21 . Level 4 4 | . . . . 12 . Level 5 . | . . . . . . High Security . | . . . . . . Max Security . | . . . . . . Squads Dispatched 38 | . 5 5 8 20 . Investigation 10 | . 3 3 1 3 . Extermination 8 | . . . . 8 . Reinforcement 9 | . 2 1 3 3 . Assault 7 | . . 1 3 3 . Garrison 4 | . . . 1 3 . Intercept . | . . . . . . Searches Triggered . | . . . . . . Construction Impeded 3 | . . . 2 1 . Haulers Reinforced . | . . . . . . Active Scanning Responses . | . . . . . . Cargo Convoy Interrupts 1 | . . . . 1 . Stealth | -11 -10 -9 -8 -7 -7 --------- Run | Yrd Mat Mat Mat Fac Was Distress Signals 9 | . 1 3 3 2 . Communications Jammed . | . . . . . . Distress Signals . | . . . . . . Times Spotted 218 | . 26 46 69 69 8 Peak Tracking Total 9 | . 5 9 8 7 6 Tactical Retreats 16 | . . 4 5 5 2 Traps | -11 -10 -9 -8 -7 -7 ------- Run | Yrd Mat Mat Mat Fac Was Traps Triggered 10 | . 4 1 . 5 . Indirectly . | . . . . . . Trap Hack Attempts . | . . . . . . Triggered . | . . . . . . Disarmed . | . . . . . . Reprogrammed . | . . . . . . Reused . | . . . . . . Traps Extracted . | . . . . . . Installed . | . . . . . . Triggered 1 | . . . . 1 . Machines | -11 -10 -9 -8 -7 -7 ---------- Run | Yrd Mat Mat Mat Fac Was Machines Disabled 31 | . 5 3 4 19 . Max in Single Turn 5 | . 1 1 1 5 . Machines Repaired . | . . . . . . Machines Dismantled . | . . . . . . Machines Sabotaged . | . . . . . . Overloaded Fab Kills . | . . . . . . Hacking | -11 -10 -9 -8 -7 -7 --------- Run | Yrd Mat Mat Mat Fac Was Machines Accessed 37 | . 5 9 8 15 . Terminals 22 | . 3 5 5 9 . Fabricators 2 | . . . . 2 . Repair Stations 3 | . . 1 . 2 . Recycling Units 6 | . 2 2 1 1 . Scanalyzers 2 | . . 1 1 . . Garrison Access 2 | . . . 1 1 . Total Hacks 100 | . 13 25 27 35 . Successful 59 | . 8 17 15 19 . Failed 41 | . 5 8 12 16 . Catastrophic 6 | . 1 1 2 2 . Database Lockouts . | . . . . . . Manual 69 | . 10 17 19 23 . Terminals 63 | . 8 14 18 23 . Fabricators 4 | . . . . 4 . Repair Stations 8 | . . 3 . 5 . Recycling Units 14 | . 5 5 2 2 . Scanalyzers 8 | . . 3 5 . . Garrison Access 3 | . . . 2 1 . Terminal Hacks 6 | . 1 1 1 3 . Level Access Points 2 | . 1 1 . . . Branch Access Points 2 | . . . 1 1 . Unreport Threat 1 | . . . . 1 . Recall Assault 1 | . . . . 1 . Fabricator Hacks 3 | . . . . 3 . Load Schematic 2 | . . . . 2 . Build 1 | . . . . 1 . Repair Station Hacks 5 | . . 1 . 4 . Scan Component 4 | . . 1 . 3 . Repair 1 | . . . . 1 . Recycling Unit Hacks 6 | . 2 2 1 1 . Retrieve Matter 1 | . . . . 1 . Retrieve Components 5 | . 2 2 1 . . Scanalyzer 7 | . . 2 5 . . Insert Component 5 | . . 1 4 . . Analyze 2 | . . 1 1 . . Garrison Access Hacks . | . . . . . . Unauthorized Hacks 32 | . 5 11 8 8 . Terminals 27 | . 3 9 7 8 . Botnet 18 | . 3 5 4 6 . Disrupt 9 | . . 4 3 2 . Fabricators . | . . . . . . Repair Stations . | . . . . . . Recycling Units 5 | . 2 2 1 . . Tunnel 5 | . 2 2 1 . . Scanalyzers . | . . . . . . Garrison Access . | . . . . . . Data Cores Recovered . | . . . . . . Used . | . . . . . . Hacking Detections 33 | . 3 8 7 15 . Full Trace Events 4 | . 1 2 . 1 . Feedback Events . | . . . . . . Feedback Blocked . | . . . . . . Robot Schematics Acquired . | . . . . . . Robots Built . | . . . . . . Authchips . | . . . . . . Time . | . . . . . . Total Robot Build Rating . | . . . . . . Part Schematics Acquired 2 | . . 1 1 . . Parts Built 2 | . . . . 2 . Authchips . | . . . . . . Time 62 | . . . . 62 . Total Part Build Rating 4 | . . . . 4 . Parts Repaired 1 | . . . . 1 . Time 13 | . . . . 13 . Parts Recycled . | . . . . . . Recycled Matter . | . . . . . . Retrieved Matter 155 | . . . . 155 . Retrieved Components 35 | . 13 12 10 . . Parts Scanalyzed 2 | . . 1 1 . . Part Schematics Acquired 2 | . . 1 1 . . Parts Damaged . | . . . . . . Bothacking | -11 -10 -9 -8 -7 -7 ------------ Run | Yrd Mat Mat Mat Fac Was Used RIF Installer . | . . . . . . Robots Hacked . | . . . . . . Non-combat . | . . . . . . Combat . | . . . . . . Robot Hacks Applied . | . . . . . . Relay Couplers Released . | . . . . . . Fabnet Peak Effective % . | . . . . . . Robots Rewired . | . . . . . . Allies Hacked . | . . . . . . Hacks Repelled . | . . . . . . Allies | -11 -10 -9 -8 -7 -7 -------- Run | Yrd Mat Mat Mat Fac Was Total Allies . | . . . . . . Largest Group . | . . . . . . Highest-Rated Group . | . . . . . . Highest-Rated Ally . | . . . . . . Total Orders . | . . . . . . Ally Attacks . | . . . . . . Total Damage . | . . . . . . Kills . | . . . . . . Allies Corrupted . | . . . . . . Allies Melted . | . . . . . . Intel | -11 -10 -9 -8 -7 -7 ------- Run | Yrd Mat Mat Mat Fac Was Robot Analysis Total . | . . . . . . Derelict Logs Recovered . | . . . . . . Drone Launches . | . . . . . . Drone Recoveries . | . . . . . . Exploration | -11 -10 -9 -8 -7 -7 ------------- Run | Yrd Mat Mat Mat Fac Was Turns Passed 9528 | 72 1492 1785 2455 3528 196 Spaces Moved 3593 | 40 631 577 730 1492 123 Core 12 | 5 . . . . 7 Treads 3083 | 35 631 577 729 1111 . Legs 1 | . . . 1 . . Wheels . | . . . . . . Hover . | . . . . . . Flight 497 | . . . . 381 116 Fastest Speed 26 | 50 160 160 240 26 26 Average Speed 203 | 150 165 239 260 190 65 Slowest Speed 689 | 160 320 240 610 689 355 Overloaded Moves . | . . . . . . Propulsion Burnouts . | . . . . . . Robots Hopped 2 | . . . . 2 . Cave-ins Triggered 4 | . . . . 1 3 Exploration Rate (%) 52 | 4 89 56 60 34 73 Regions Visited 5 Branch Regions . Pre-discovered Areas 5 | . 2 2 1 . . Known Exits Taken 2 | . 1 1 . . . Unknown Exits Taken 2 | 1 . . 1 . . Scrap Searched . | . . . . . . Spaces Dug 39 | . . 1 2 2 34 Terrain Destroyed 364 | . 5 42 67 216 34 Melee 38 | . . 1 1 2 34 Projectile 50 | . . . 9 41 . AOE 276 | . 5 41 57 173 . Terrain Rammed . | . . . . . . Walls Destroyed . | . . . . . . Machines Disabled . | . . . . . . Actions | -11 -10 -9 -8 -7 -7 --------- Run | Yrd Mat Mat Mat Fac Was Total 4921 | 49 982 789 1016 1917 168 Wait 560 | . 248 70 66 170 6 Move 3584 | 39 630 576 729 1488 122 Hop 2 | . . . . 2 . Pick Up 98 | 4 22 17 25 30 . Fast Attach 36 | 6 4 4 11 9 2 Attach 41 | . . 6 14 20 1 Detach 9 | . . 2 . 7 . Swap 56 | . 10 9 14 21 2 Drop 78 | . 15 6 20 37 . Fire 414 | . 53 97 134 130 . Melee 40 | . . 2 2 2 34 Ram . | . . . . . . Kick . | . . . . . . Crush 2 | . . . 1 1 . Escape Stasis 1 | . . . . . 1 Rewire . | . . . . . . Trap . | . . . . . . Miscellaneous . | . . . . . . Route ------- -11/Scrapyard -10/Materials (discovered 5 exits: *Mat x3 / [*Min x2]) -9/Materials (discovered 4 exits: *Mat x3 / [*Min]) -8/Materials -7/Factory (discovered 4 exits: Sto x2 / Low x2) -7/Waste History --------- Turn | Location | Event 7 | -11/Scrapyard | Discovered new exit (range 15) 73 | -11/Scrapyard | Entered Materials 301 | -10/Materials | Build established: Mutant 614 | -10/Materials | Discovered new exit (range 6) 629 | -10/Materials | Discovered new exit (range 15) 828 | -10/Materials | Discovered new exit (range 14) 1111 | -10/Materials | Discovered new exit (range 7) 1218 | -10/Materials | Discovered new exit (range 15) 1494 | -10/Materials | Identified exit to Materials 1565 | -10/Materials | Entered another Materials area 1565 | -9/Materials | Evolved 2 slots: Propulsion x2 1791 | -9/Materials | Destroyed 7 combat bots 2365 | -9/Materials | First assault squad dispatched 2368 | -9/Materials | Discovered new exit (range 9) 2494 | -9/Materials | Destroyed 7 combat bots 2962 | -9/Materials | Identified exit to Materials 3125 | -9/Materials | Discovered new exit (range 15) 3350 | -9/Materials | Entered another Materials area 3350 | -8/Materials | Evolved 2 slots: Utility x2 3646 | -8/Materials | Build established: Scavenger-Mutant 4068 | -8/Materials | Garrison activated, responded to threat 4184 | -8/Materials | Lost 3 parts (1p1n1u) 4375 | -8/Materials | Lost 4 parts (1p1n1u1w) 4465 | -8/Materials | Lost 3 parts (2n1w) 5350 | -8/Materials | First assault squad dispatched 5538 | -8/Materials | Discovered new exit (range 9) 5568 | -8/Materials | Build established: Mutant 5805 | -8/Materials | Entered Factory 5805 | -7/Factory | Evolved 2 slots: Utility x2 6100 | -7/Factory | Build established: Hacker-Mutant 6187 | -7/Factory | Repaired Grenade Launcher 6326 | -7/Factory | Garrison activated, responded to threat 6819 | -7/Factory | Cargo convoy interrupted 6919 | -7/Factory | Fabricated VTOL Module (x2) 7005 | -7/Factory | First assault squad dispatched 7123 | -7/Factory | System corruption reached 10% 7156 | -7/Factory | Lost 6 parts (2n4u) 7421 | -7/Factory | Build established: Mutant 8167 | -7/Factory | Build established: Scavenger-Mutant 9116 | -7/Factory | Core integrity fell below 50% 9129 | -7/Factory | Lost 3 parts (1p1u1w) 9270 | -7/Factory | Identified exit to Storage 9270 | -7/Factory | Identified exit to Lower Caves 9304 | -7/Factory | Crushed by falling debris 9333 | -7/Factory | Sucked down chute 9333 | -7/Factory | Entered Waste 9348 | -7/Waste | EMP discharged 9348 | -7/Waste | System corruption reached 30% 9350 | -7/Waste | Spotted C-40 Crusher 9351 | -7/Waste | Spotted C-40 Crusher 9351 | -7/Waste | Spotted C-40 Crusher 9351 | -7/Waste | Spotted C-40 Crusher 9384 | -7/Waste | Spotted C-40 Crusher 9407 | -7/Waste | Crushed by falling debris 9448 | -7/Waste | EMP discharged 9488 | -7/Waste | Crushed by falling debris 9494 | -7/Waste | Crushed by falling debris 9507 | -7/Waste | Crushed by Compactor (1 part destroyed, 1 dropped) 9518 | -7/Waste | Crushed by Compactor (1 part destroyed, 1 dropped) 9521 | -7/Waste | Crushed by Compactor (1 part destroyed, 2 dropped) 9522 | -7/Waste | Core integrity fell below 20% 9523 | -7/Waste | Crushed by Compactor (1 part destroyed) 9529 | -7/Waste | Destroyed by C-40 Crusher with Compactor Last Messages --------------- 09494_ Crushed by falling debris. 09494_ Imp. Flight Unit destroyed. 09494_ System corrupted by crushing effect (+5). 09494_ Imp. Flight Unit destroyed. 09494_ System corrupted by crushing effect (+2). [Achievement: Z1$+NX3F=JRE3_ZNQR] 09501_ The unstable cave ceiling collapses. 09503_ System corrupted: Energy discharge (-38). 09507_ Lgt. Nuclear Core crushed. 09507_ VTOL Module crushed. 09518_ Great Maul crushed. 09518_ Imp. Heat Sink crushed. 09520_ Acquired VTOL Module. 09521_ Imp. Heat Sink crushed. 09521_ Med. Storage Unit crushed. 09521_ VTOL Module crushed. 09521_ Imp. Signal Interpreter crushed. 09523_ Hacking Suite crushed. 09524_ Lgt. Nuclear Core crushed. 09525_ VTOL Module crushed. Map ----- +----------------------------------------------------+ | #??????# ????????????????????????????????? | | #??????# ?????????????????????????????????? | | #??????# ??????????????????????????????????? | | #??????# #??????????????????????????????????? | | #??????# #??????????????????????????????????? | | #??????# #??????????????????????????????????? | | #??????# #??????????????????????????????????? | | ######## ########?? ????????????????????????? | | ?????????????????????? | | ?????????????????????? | | ?????????????????????? | | ??????????????????????? | | ####"### ######## #??????????????????????? | | #??##### #??????# #??????????????????????? | | #??## ## #??????# #??????????????????????? | | #???#### #??????# #??????????????????????? | | #????##" ######## ###????????????????????? | | #????# # #????????????????????? | | #????# # #????????????????????? | | #????### #????????????????????? | | #????# " ?????????????????????? | | ?????# # ######"# CC#??????????????????????? | | ?????# # #??#####CCCC#??????????????????????? | | ?????# # #?## #=#CCCC#??????????????????????? | | ???????# # ### ##!=CCCC#??????????????????????? | | ???????##" ## #####CC @#??????????????????????? | | ???????# ###### ##???######??????????????????????? | | ???????## # ##????????????????????????????????? | | ????????########?????????????????????????????????? | | ?????????????????????????????????????????????????? | | ?????????????????????????????????????????????????? | | ?????????????????????????????????????????????????? | | ?????????????????????????????????????????????????? | | ?????????????????????????????????????????????????? | | ?????????????????????????????????????????????????? | | ?????????????????????????????????????????????????? | | ?????????????????????????????????????????????????? | | ?????????????????????????????????????????????????? | | ?????????????????????????????????????????????????? | | ?????????????????????????????????????????????????? | | ?????????????????????????????????????????????????? | | ?????????????????????????????????????????????????? | | ?????????????????????????????????????????????????? | | ?????????????????????????????????????????????????? | | ?????????????????????????????????????????????????? | | ?????????????????????????????????????????????????? | | ?????????????????????????????????????????????????? | | ?????????????????????????????????????????????????? | | ?????????????????????????????????????????????????? | | ?????????????????????????????????????????????????? | +----------------------------------------------------+ Best States ------------- Heat Dissipation 70 Energy Generation 14 Energy Capacity 280 Matter Stores 300 Matter Capacity 300 Sight Range 16 Robot Scan Range 15 Terrain Scan Density 10 Armor Coverage 375 Evasion (%) 64 Target Analysis 5 Recoil Reduction 4 Offensive Hacking 20 Item Schematics ----------------- VTOL Module | -9/Materials | Scanalyzed Hacking Suite | -8/Materials | Scanalyzed Robot Schematics ------------------ None Fabricated ------------ VTOL Module | x2 | -7/Factory Alien Tech Used ----------------- None Achievements -------------- Z1$+NX3F=JRE3_ZNQR Challenges ------------ None Game ------ Seed AssembledGreatCleaver Manual? 0 Play Time 01:59:44 Cumulative 39.3 hours Start 2024.09.06 @ 12:22:19 End 2024.09.06 @ 21:57:11 Sessions 1 Manual Loads 0 Difficulty Rogue Special Mode None Game No. 56 Rogue 56 Adventurer 0 Explorer 0 Win Type - Total 1 Types 1/0/0/0/0/0/0/0/0 Lore% 16 Gallery% 34 Achievement% 32 Wizard Run 0 Options --------- Layout 0 ASCII 0 Keyboard 0 Movement Numpad Keybinds 0 Fullscreen 1 Font 18/Cog Map View 76x50 Zoom Use 0% Tactical HUD 1 Map Filters NONE Filters NONE Steam 1 RUN: e8912329-3b1c-430e-95de-c740eeae5806